fUST/lending_fUST_20250131
["ID","MTS","AMOUNT","RATE_DAILY","PERIOD"]
[350997481,1738276242684,-500.0,0.00016438,2]
[350997482,1738276242694,-500.0,0.00016438,2]
[350997483,1738276242705,-151.0,0.00016438,2]
[350997484,1738276242715,-500.0,0.00016438,2]
[350997485,1738276242724,-214.37200195,0.00016438,2]
[350997486,1738276242734,-500.0,0.00016438,2]
[350997487,1738276242745,-500.0,0.00016438,2]
[350997488,1738276242755,-500.0,0.00016438,2]
[350997489,1738276242765,-500.0,0.00016438,2]
[350997490,1738276242786,-151.0,0.00016438,2]
[350997491,1738276242802,-500.0,0.00016438,2]
[350997492,1738276242812,-500.0,0.00016438,2]
[350997493,1738276242821,-500.0,0.00016438,2]
[350997494,1738276242831,-500.0,0.00016438,2]
[350997495,1738276242841,-500.0,0.00016438,2]
[350997496,1738276242850,-500.0,0.00016438,2]
[350997497,1738276242859,-500.0,0.00016438,2]
[350997498,1738276242869,-500.0,0.00016438,2]
[350997499,1738276242878,-480.37917218,0.00016438,2]
[350997500,1738276243041,-19.62082782,0.00016438,2]
[350997501,1738276243052,-500.0,0.00016438,2]
[350997502,1738276243063,-500.0,0.00016438,2]
[350997503,1738276243072,-500.0,0.00016438,2]
[350997505,1738276243082,-500.0,0.00016438,2]
[350997506,1738276243092,-500.0,0.00016438,2]
[350997507,1738276243101,-311.11567009,0.00016438,2]
[350997509,1738276243265,-188.88432991,0.00016438,2]
[350997510,1738276243276,-500.0,0.00016438,2]
[350997511,1738276243286,-135.24476853,0.00016438,2]
[350997512,1738276243298,-364.75523147,0.00016438,2]
[350997513,1738276243308,-500.0,0.00016438,2]
[350997514,1738276243318,-500.0,0.00016438,2]
[350997515,1738276243327,-2640.3,0.00016438,2]
[350997516,1738276243338,-500.0,0.00016438,2]
[350997517,1738276243347,-796.02,0.00016438,2]
[350997518,1738276243356,-500.0,0.00016438,2]
[350997519,1738276243366,-500.0,0.00016438,2]
[350997520,1738276243375,-500.0,0.00016438,2]
[350997521,1738276243385,-500.0,0.00016438,2]
[350997522,1738276243395,-500.0,0.00016438,2]
[350997523,1738276243405,-500.0,0.00016438,2]
[350997524,1738276243414,-493.9766575,0.00016438,2]
[350997525,1738276243423,-500.0,0.00016438,2]
[350997526,1738276243432,-500.0,0.00016438,2]
[350997527,1738276243442,-500.0,0.00016438,2]
[350997528,1738276243451,-257.81925144,0.00016438,2]
[350997529,1738276243460,-502.84566224,0.00016438,2]
[350997530,1738276243469,-1363.49,0.00016438,2]
[350997531,1738276243480,-500.0,0.00016438,2]
[350997532,1738276243489,-500.0,0.00016438,2]
[350997533,1738276243499,-500.0,0.00016438,2]
[350997534,1738276243509,-500.0,0.00016438,2]
[350997535,1738276243519,-500.0,0.00016438,2]
[350997536,1738276243530,-500.0,0.00016438,2]
[350997537,1738276243539,-500.0,0.00016438,2]
[350997538,1738276243549,-503.06918222,0.00016438,2]
[350997539,1738276243558,-645.56681976,0.00016438,2]
[350997540,1738276243567,-500.0,0.00016438,2]
[350997541,1738276243577,-500.0,0.00016438,2]
[350997542,1738276243591,-500.0,0.00016438,2]
[350997543,1738276243600,-500.0,0.00016438,2]
[350997544,1738276243610,-500.0,0.00016438,2]
[350997545,1738276243620,-500.0,0.00016438,2]
[350997546,1738276243631,-500.0,0.00016438,2]
[350997547,1738276243640,-151.0,0.00016438,2]
[350997548,1738276243650,-500.0,0.00016438,2]
[350997549,1738276243659,-500.0,0.00016438,2]
[350997550,1738276243669,-500.0,0.00016438,2]
[350997551,1738276243679,-500.0,0.00016438,2]
[350997552,1738276243688,-226.57920029,0.00016438,2]
[350997553,1738276243698,-500.0,0.00016438,2]
[350997554,1738276243708,-500.0,0.00016438,2]
[350997555,1738276243717,-500.0,0.00016438,2]
[350997556,1738276243727,-500.0,0.00016438,2]
[350997557,1738276243736,-500.0,0.00016438,2]
[350997558,1738276243747,-500.0,0.00016438,2]
[350997559,1738276243757,-500.0,0.00016438,2]
[350997560,1738276243768,-500.0,0.00016438,2]
[350997561,1738276243777,-500.0,0.00016438,2]
[350997562,1738276243787,-500.0,0.00016438,2]
[350997563,1738276243796,-500.0,0.00016438,2]
[350997564,1738276243805,-500.0,0.00016438,2]
[350997565,1738276243815,-1127.78,0.00016438,2]
[350997566,1738276243825,-500.0,0.00016438,2]
[350997567,1738276243835,-598.79,0.00016438,2]
[350997568,1738276243845,-500.0,0.00016438,2]
[350997569,1738276243854,-151.0,0.00016438,2]
[350997570,1738276243864,-500.0,0.00016438,2]
[350997571,1738276243873,-500.0,0.00016438,2]
[350997572,1738276243882,-151.0,0.00016438,2]
[350997573,1738276243892,-500.0,0.00016438,2]
[350997574,1738276243914,-500.0,0.00016438,2]
[350997575,1738276243926,-503.07941548,0.00016438,2]
[350997576,1738276243935,-500.0,0.00016438,2]
[350997577,1738276243945,-500.0,0.00016438,2]
[350997578,1738276243955,-500.0,0.00016438,2]
[350997579,1738276243964,-151.0,0.00016438,2]
[350997580,1738276243973,-151.159581,0.00016438,2]
[350997581,1738276243983,-500.0,0.00016438,2]
[350997582,1738276243993,-500.0,0.00016438,2]
[350997583,1738276244002,-500.0,0.00016438,2]
[350997584,1738276244013,-500.0,0.00016438,2]
[350997585,1738276244022,-500.0,0.00016438,2]
[350997586,1738276244032,-151.0,0.00016438,2]
[350997587,1738276244041,-500.0,0.00016438,2]
[350997588,1738276244052,-500.0,0.00016438,2]
[350997589,1738276244061,-500.0,0.00016438,2]
[350997590,1738276244070,-500.0,0.00016438,2]
[350997591,1738276244080,-500.0,0.00016438,2]
[350997592,1738276244090,-533.65,0.00016438,2]
[350997593,1738276244099,-500.0,0.00016438,2]
[350997594,1738276244109,-500.0,0.00016438,2]
[350997595,1738276244118,-500.0,0.00016438,2]
[350997596,1738276244127,-500.0,0.00016438,2]
[350997597,1738276244136,-500.0,0.00016438,2]
[350997598,1738276244146,-500.83328162,0.00016438,2]
[350997599,1738276244155,-500.0,0.00016438,2]
[350997600,1738276244165,-500.0,0.00016438,2]
[350997601,1738276244174,-500.0,0.00016438,2]
[350997602,1738276244186,-500.0,0.00016438,2]
[350997603,1738276244195,-500.0,0.00016438,2]
[350997604,1738276244204,-151.0,0.00016438,2]
[350997605,1738276244213,-500.0,0.00016438,2]
[350997606,1738276244224,-500.0,0.00016438,2]
[350997607,1738276244233,-500.0,0.00016438,2]
[350997608,1738276244244,-500.0,0.00016438,2]
[350997609,1738276244253,-500.0,0.00016438,2]
[350997610,1738276244262,-500.0,0.00016438,2]
[350997611,1738276244272,-500.0,0.00016438,2]
[350997612,1738276244281,-502.00920862,0.00016438,2]
[350997613,1738276244297,-626.60147156,0.00016438,2]
[350997614,1738276244311,-514.73190184,0.00016438,2]
[350997615,1738276244322,-500.0,0.00016438,2]
[350997616,1738276244331,-500.0,0.00016438,2]
[350997617,1738276244341,-500.0,0.00016438,2]
[350997618,1738276244351,-500.0,0.00016438,2]
[350997619,1738276244360,-500.0,0.00016438,2]
[350997620,1738276244370,-501.34467318,0.00016438,2]
[350997621,1738276244381,-500.0,0.00016438,2]
[350997622,1738276244391,-500.0,0.00016438,2]
[350997623,1738276244401,-500.0,0.00016438,2]
[350997624,1738276244411,-500.0,0.00016438,2]
[350997625,1738276244421,-502.2,0.00016438,2]
[350997626,1738276244432,-500.0,0.00016438,2]
[350997627,1738276244442,-500.0,0.00016438,2]
[350997628,1738276244451,-503.19520352,0.00016438,2]
[350997629,1738276244460,-500.0,0.00016438,2]
[350997630,1738276244470,-151.0,0.00016438,2]
[350997631,1738276244480,-151.0,0.00016438,2]
[350997632,1738276244490,-500.0,0.00016438,2]
[350997633,1738276244501,-500.0,0.00016438,2]
[350997634,1738276244517,-500.0,0.00016438,2]
[350997635,1738276244527,-500.0,0.00016438,2]
[350997636,1738276244538,-500.0,0.00016438,2]
[350997637,1738276244549,-874.4,0.00016438,2]
[350997638,1738276244559,-500.0,0.00016438,2]
[350997639,1738276244569,-501.4,0.00016438,2]
[350997640,1738276244580,-500.0,0.00016438,2]
[350997641,1738276244593,-500.0,0.00016438,2]
[350997642,1738276244603,-500.0,0.00016438,2]
[350997643,1738276244613,-151.0,0.00016438,2]
[350997644,1738276244622,-500.0,0.00016438,2]
[350997645,1738276244633,-218.23646,0.00016438,2]
[350997646,1738276244643,-500.0,0.00016438,2]
[350997647,1738276244653,-500.0,0.00016438,2]
[350997648,1738276244666,-500.0,0.00016438,2]
[350997649,1738276244675,-151.0,0.00016438,2]
[350997650,1738276244685,-500.0,0.00016438,2]
[350997651,1738276244695,-151.0,0.00016438,2]
[350997652,1738276244705,-500.0,0.00016438,2]
[350997653,1738276244715,-157.65017618,0.00016438,2]
[350997654,1738276244725,-500.0,0.00016438,2]
[350997655,1738276244734,-500.0,0.00016438,2]
[350997656,1738276244745,-164.05327191,0.00016438,2]
[350997657,1738276244755,-500.0,0.00016438,2]
[350997658,1738276244765,-500.0,0.00016438,2]
[350997659,1738276244775,-500.0,0.00016438,2]
[350997660,1738276244785,-500.0,0.00016438,2]
[350997661,1738276244795,-463.83268042,0.00016438,2]
[350997668,1738276246275,-36.16731958,0.00016438,2]
[350997669,1738276246285,-495.03809022,0.00016438,2]
[350997670,1738276570510,157.491262,0.00013973,2]
[350997671,1738276826255,1068.63889421,0.00015101,2]
[350997740,1738277432791,-345.0,0.00015133,2]
[350997744,1738277432835,-166.102893,0.00015133,2]
[350997746,1738277432845,-311.4120564,0.00015305,2]
[350997748,1738277432855,-300.0,0.00015394,2]
[350997750,1738277432864,-76.4405506,0.00015395,2]
[350997754,1738277432889,-18014.17004228,0.00015395,2]
[350998306,1738277438518,-6809.38940712,0.00015395,2]
[350998308,1738277438528,-345.43648729,0.00015496,2]
[350998310,1738277438537,-157.832,0.0001587,2]
[350998312,1738277438546,-12695.85917087,0.00016177,2]
[350998314,1738277438556,-548.64275351,0.00016238,2]
[350998316,1738277438565,-267.33737509,0.00016338,2]
[350998318,1738277438574,-500.0,0.00016437,2]
[350998335,1738277438712,-500.0,0.00016437,2]
[350998338,1738277438721,-335.74069556,0.00016437,2]
[350998341,1738277438731,-500.0,0.00016437,2]
[350998344,1738277438740,-500.0,0.00016437,2]
[350998347,1738277438749,-500.0,0.00016437,2]
[350998350,1738277438758,-500.0,0.00016437,2]
[350998352,1738277438767,-430.49103184,0.00016437,2]
[350998354,1738277438776,-411.5,0.00016437,2]
[350998356,1738277438786,-500.0,0.00016437,2]
[350998358,1738277438795,-500.0,0.00016437,2]
[350998360,1738277438804,-500.0,0.00016437,2]
[350998362,1738277438814,-500.0,0.00016437,2]
[350998364,1738277438823,-441.85820593,0.00016437,2]
[350998366,1738277438834,-58.62475032,0.00016437,2]
[350998368,1738277438844,-500.0,0.00016438,2]
[350998370,1738277438853,-500.0,0.00016438,2]
[350998372,1738277438866,-500.0,0.00016438,2]
[350998374,1738277438875,-324.84571084,0.00016438,2]
[350998376,1738277438888,-175.15428916,0.00016438,2]
[350998378,1738277438897,-500.0,0.00016438,2]
[350998380,1738277438906,-462.49862645,0.00016438,2]
[350998382,1738277438916,-500.0,0.00016438,2]
[350998384,1738277438926,-9.6923777,0.00016438,2]
[350998387,1738277438938,-490.3076223,0.00016438,2]
[350998389,1738277438948,-317.96,0.00016438,2]
[350998391,1738277438957,-500.0,0.00016438,2]
[350998393,1738277438966,-500.0,0.00016438,2]
[350998395,1738277438978,-500.0,0.00016438,2]
[350998397,1738277438987,-567.1637288,0.00016438,2]
[350998399,1738277438997,-518.3282198,0.00016438,2]
[350998401,1738277439006,-500.0,0.00016438,2]
[350998403,1738277439015,-374.17,0.00016438,2]
[350998405,1738277439024,-508.00037369,0.00016438,2]
[350998407,1738277439034,-519.0966617,0.00016438,2]
[350998409,1738277439043,-500.0,0.00016438,2]
[350998411,1738277439053,-500.0,0.00016438,2]
[350998413,1738277439062,-500.0,0.00016438,2]
[350998415,1738277439071,-500.0,0.00016438,2]
[350998417,1738277439081,-500.0,0.00016438,2]
[350998418,1738277439090,-500.0,0.00016438,2]
[350998420,1738277439099,-500.0,0.00016438,2]
[350998422,1738277439109,-456.26654608,0.00016438,2]
[350998562,1738277440624,-45.65909398,0.00016438,2]
[350998564,1738277440633,-502.36083087,0.00016438,2]
[350998566,1738277440642,-500.0,0.00016438,2]
[350998568,1738277440652,-500.0,0.00016438,2]
[350998570,1738277440661,-429.61025845,0.00016438,2]
[350998573,1738277440674,-70.38974155,0.00016438,2]
[350998575,1738277440683,-437.68414253,0.00016438,2]
[350998577,1738277440692,-505.55504595,0.00016438,2]
[350998579,1738277440702,-350.32106997,0.00016438,2]
[350998581,1738277440713,-149.67893003,0.00016438,2]
[350998583,1738277440724,-500.0,0.00016438,2]
[350998585,1738277440733,-500.0,0.00016438,2]
[350998587,1738277440742,-500.0,0.00016438,2]
[350998589,1738277440752,-500.0,0.00016438,2]
[350998591,1738277440762,-500.0,0.00016438,2]
[350998593,1738277440771,-500.0,0.00016438,2]
[350998595,1738277440781,-500.0,0.00016438,2]
[350998597,1738277440790,-500.0,0.00016438,2]
[350998599,1738277440800,-500.0,0.00016438,2]
[350998601,1738277440809,-500.0,0.00016438,2]
[350998603,1738277440819,-500.0,0.00016438,2]
[350998605,1738277440828,-500.0,0.00016438,2]
[350998607,1738277440838,-500.0,0.00016438,2]
[350998609,1738277440848,-500.0,0.00016438,2]
[350998611,1738277440857,-500.0,0.00016438,2]
[350998613,1738277440866,-500.0,0.00016438,2]
[350998615,1738277440876,-487.96883517,0.00016438,2]
[350998617,1738277440885,-568.03700156,0.00016438,2]
[350998619,1738277440894,-500.0,0.00016438,2]
[350998621,1738277440904,-503.86893817,0.00016438,2]
[350998623,1738277440913,-500.0,0.00016438,2]
[350998625,1738277440922,-500.0,0.00016438,2]
[350998627,1738277440931,-500.0,0.00016438,2]
[350998629,1738277440941,-500.0,0.00016438,2]
[350998630,1738277440950,-500.0,0.00016438,2]
[350998632,1738277440959,-500.0,0.00016438,2]
[350998634,1738277440969,-500.0,0.00016438,2]
[350998636,1738277440981,-500.0,0.00016438,2]
[350998638,1738277440991,-500.0,0.00016438,2]
[350998640,1738277441003,-509.06159686,0.00016438,2]
[350998642,1738277441012,-107.36785524,0.00016438,2]
[350998645,1738277441025,-392.63214476,0.00016438,2]
[350998647,1738277441034,-500.0,0.00016438,2]
[350998649,1738277441043,-89.03379844,0.00016438,2]
[350998651,1738277441056,-420.19992223,0.00016438,2]
[350998653,1738277441066,-507.03803585,0.00016438,2]
[350998655,1738277441075,-506.58633253,0.00016438,2]
[350998657,1738277441085,-500.0,0.00016438,2]
[350998659,1738277441095,-405.92,0.00016438,2]
[350998661,1738277441104,-414.25570939,0.00016438,2]
[350998943,1738277444081,-85.74429061,0.00016438,2]
[350998945,1738277444091,-500.0,0.00016438,2]
[350998947,1738277444102,-500.0,0.00016438,2]
[350998949,1738277444111,-526.63951303,0.00016438,2]
[350998951,1738277444120,-389.53794727,0.00016438,2]
[350998953,1738277444129,-378.93776314,0.00016438,2]
[350998965,1738277444241,-121.06223686,0.00016438,2]
[350998967,1738277444250,-500.0,0.00016438,2]
[350998969,1738277444260,-596.92747546,0.00016438,2]
[350998971,1738277444269,-500.0,0.00016438,2]
[350998973,1738277444278,-500.0,0.00016438,2]
[350998975,1738277444288,-500.0,0.00016438,2]
[350998977,1738277444297,-500.0,0.00016438,2]
[350998979,1738277444306,-500.0,0.00016438,2]
[350998981,1738277444315,-500.0,0.00016438,2]
[350998983,1738277444324,-500.0,0.00016438,2]
[350998985,1738277444333,-500.0,0.00016438,2]
[350998987,1738277444343,-500.0,0.00016438,2]
[350998988,1738277444352,-500.0,0.00016438,2]
[350998990,1738277444362,-500.0,0.00016438,2]
[350998992,1738277444371,-305.73491047,0.00016438,2]
[350998994,1738277444381,-296.0059191,0.00016438,2]
[350998996,1738277444390,-498.4992661,0.00016438,2]
[350998998,1738277444400,-513.09933811,0.00016438,2]
[350999000,1738277444409,-1941.62,0.00016438,2]
[350999002,1738277444418,-500.0,0.00016438,2]
[350999004,1738277444427,-500.0,0.00016438,2]
[350999006,1738277444437,-500.0,0.00016438,2]
[350999008,1738277444446,-516.70884273,0.00016438,2]
[350999010,1738277444455,-500.0,0.00016438,2]
[350999012,1738277444464,-534.14575502,0.00016438,2]
[350999014,1738277444474,-500.0,0.00016438,2]
[350999016,1738277444483,-500.0,0.00016438,2]
[350999018,1738277444492,-505.76366311,0.00016438,2]
[350999020,1738277444501,-500.0,0.00016438,2]
[350999022,1738277444511,-506.23033531,0.00016438,2]
[350999024,1738277444520,-500.0,0.00016438,2]
[350999026,1738277444529,-500.0,0.00016438,2]
[350999028,1738277444539,-500.0,0.00016438,2]
[350999029,1738277444548,-500.0,0.00016438,2]
[350999031,1738277444558,-503.28174335,0.00016438,2]
[350999033,1738277444567,-505.90379924,0.00016438,2]
[350999035,1738277444576,-508.67237825,0.00016438,2]
[350999037,1738277444585,-500.0,0.00016438,2]
[350999039,1738277444596,-500.0,0.00016438,2]
[350999041,1738277444605,-500.0,0.00016438,2]
[350999043,1738277444615,-2899.63,0.00016438,2]
[350999045,1738277444624,-500.0,0.00016438,2]
[350999047,1738277444633,-500.0,0.00016438,2]
[350999049,1738277444642,-500.0,0.00016438,2]
[350999051,1738277444652,-500.0,0.00016438,2]
[350999053,1738277444661,-500.0,0.00016438,2]
[350999055,1738277444671,-500.0,0.00016438,2]
[350999057,1738277444680,-507.66398135,0.00016438,2]
[350999059,1738277444689,-500.0,0.00016438,2]
[350999061,1738277444699,-472.16486793,0.00016438,2]
[350999063,1738277444709,-500.0,0.00016438,2]
[350999064,1738277444719,-853.35,0.00016438,2]
[350999066,1738277444729,-500.0,0.00016438,2]
[350999068,1738277444739,-500.0,0.00016438,2]
[350999070,1738277444748,-500.0,0.00016438,2]
[350999072,1738277444758,-500.0,0.00016438,2]
[350999074,1738277444767,-458.39233517,0.00016438,2]
[350999076,1738277444778,-500.0,0.00016438,2]
[350999078,1738277444788,-500.0,0.00016438,2]
[350999080,1738277444797,-500.0,0.00016438,2]
[350999082,1738277444806,-500.0,0.00016438,2]
[350999084,1738277444816,-1714.94,0.00016438,2]
[350999086,1738277444826,-500.0,0.00016438,2]
[350999088,1738277444835,-500.0,0.00016438,2]
[350999090,1738277444845,-500.0,0.00016438,2]
[350999092,1738277444854,-500.0,0.00016438,2]
[350999094,1738277444863,-500.0,0.00016438,2]
[350999095,1738277444873,-500.0,0.00016438,2]
[350999097,1738277444883,-500.0,0.00016438,2]
[350999099,1738277444892,-500.0,0.00016438,2]
[350999101,1738277444902,-500.0,0.00016438,2]
[350999103,1738277444911,-500.0,0.00016438,2]
[350999105,1738277444920,-500.0,0.00016438,2]
[350999107,1738277444930,-500.0,0.00016438,2]
[350999109,1738277444939,-500.0,0.00016438,2]
[350999111,1738277444949,-500.0,0.00016438,2]
[350999113,1738277444959,-500.0,0.00016438,2]
[350999115,1738277444969,-359.88783527,0.00016438,2]
[350999117,1738277444981,-500.0,0.00016438,2]
[350999119,1738277444990,-500.0,0.00016438,2]
[350999121,1738277445000,-500.0,0.00016438,2]
[350999123,1738277445009,-504.92931895,0.00016438,2]
[350999125,1738277445019,-500.0,0.00016438,2]
[350999127,1738277445029,-417.95224156,0.00016438,2]
[350999129,1738277445039,-502.76708689,0.00016438,2]
[350999131,1738277445049,-500.0,0.00016438,2]
[350999133,1738277445058,-500.0,0.00016438,2]
[350999135,1738277445068,-500.0,0.00016438,2]
[350999137,1738277445077,-505.89393201,0.00016438,2]
[350999138,1738277445087,-500.0,0.00016438,2]
[350999140,1738277445097,-500.0,0.00016438,2]
[350999142,1738277445107,-500.0,0.00016438,2]
[350999144,1738277445117,-500.0,0.00016438,2]
[350999146,1738277445126,-897.41,0.00016438,2]
[350999148,1738277445136,-500.0,0.00016438,2]
[350999150,1738277445145,-510.55226144,0.00016438,2]
[350999152,1738277445154,-500.0,0.00016438,2]
[350999154,1738277445164,-500.0,0.00016438,2]
[350999156,1738277445173,-501.45585898,0.00016438,2]
[350999158,1738277445182,-500.0,0.00016438,2]
[350999160,1738277445192,-500.0,0.00016438,2]
[350999162,1738277445200,-500.0,0.00016438,2]
[350999164,1738277445210,-500.0,0.00016438,2]
[350999166,1738277445219,-561.51,0.00016438,2]
[350999168,1738277445229,-510.34636125,0.00016438,2]
[350999170,1738277445238,-185.44803579,0.00016438,2]
[350999172,1738277445248,-500.0,0.00016438,2]
[350999174,1738277445257,-500.0,0.00016438,2]
[350999176,1738277445267,-500.0,0.00016438,2]
[350999178,1738277445276,-512.8260316,0.00016438,2]
[350999180,1738277445286,-500.0,0.00016438,2]
[350999193,1738277445397,-500.0,0.00016438,2]
[350999195,1738277445407,-500.0,0.00016438,2]
[350999197,1738277445417,-500.0,0.00016438,2]
[350999199,1738277445426,-574.49,0.00016438,2]
[350999201,1738277445435,-1229.42,0.00016438,2]
[350999203,1738277445445,-500.0,0.00016438,2]
[350999205,1738277445454,-500.0,0.00016438,2]
[350999207,1738277445464,-500.0,0.00016438,2]
[350999209,1738277445474,-502.73434885,0.00016438,2]
[350999211,1738277445483,-500.0,0.00016438,2]
[350999213,1738277445492,-500.0,0.00016438,2]
[350999214,1738277445501,-510.11064869,0.00016438,2]
[350999216,1738277445510,-500.0,0.00016438,2]
[350999218,1738277445520,-500.0,0.00016438,2]
[350999220,1738277445529,-500.0,0.00016438,2]
[350999222,1738277445539,-500.0,0.00016438,2]
[350999224,1738277445548,-509.65387411,0.00016438,2]
[350999226,1738277445557,-500.0,0.00016438,2]
[350999228,1738277445566,-500.0,0.00016438,2]
[350999230,1738277445575,-500.0,0.00016438,2]
[350999232,1738277445584,-673.67,0.00016438,2]
[350999234,1738277445593,-569.65,0.00016438,2]
[350999236,1738277445603,-500.0,0.00016438,2]
[350999238,1738277445612,-505.70031755,0.00016438,2]
[350999240,1738277445621,-500.0,0.00016438,2]
[350999242,1738277445631,-119.58845056,0.00016438,2]
[350999252,1738277445721,-390.12768446,0.00016438,2]
[350999254,1738277445730,-508.30025795,0.00016438,2]
[350999256,1738277445740,-954.11,0.00016438,2]
[350999258,1738277445750,-500.0,0.00016438,2]
[350999260,1738277445759,-500.0,0.00016438,2]
[350999262,1738277445768,-533.17058194,0.00016438,2]
[350999264,1738277445778,-500.0,0.00016438,2]
[350999266,1738277445787,-500.0,0.00016438,2]
[350999268,1738277445796,-386.13676706,0.00016438,2]
[350999270,1738277445808,-113.86323294,0.00016438,2]
[350999272,1738277445818,-500.0,0.00016438,2]
[350999274,1738277445828,-500.0,0.00016574,2]
[350999276,1738277445837,-500.0,0.00016574,2]
[350999278,1738277445846,-73.63676706,0.00016574,2]
[350999335,1738277446614,-1860.72,0.00016438,2]
[350999336,1738277446624,-441.04360534,0.00016574,2]
[350999337,1738277446634,-150.04215892,0.00016574,2]
[350999338,1738277446644,-500.0,0.00016575,2]
[350999339,1738277446654,-500.0,0.00016575,2]
[350999340,1738277446664,-500.0,0.00016575,2]
[350999341,1738277446673,-578.43059988,0.00016575,2]
[350999342,1738277446683,-500.0,0.00016575,2]
[350999343,1738277446692,-500.0,0.00016575,2]
[350999344,1738277446701,-500.0,0.00016575,2]
[350999345,1738277446711,-598.24306704,0.00016575,2]
[350999346,1738277446720,-500.0,0.00016575,2]
[350999347,1738277446729,-500.0,0.00016575,2]
[350999348,1738277446738,-599.15,0.00016575,2]
[350999349,1738277446747,-500.0,0.00016575,2]
[350999350,1738277446756,-500.0,0.00016575,2]
[350999351,1738277446766,-500.0,0.00016575,2]
[350999352,1738277446776,-500.0,0.00016575,2]
[350999353,1738277446786,-245.00407258,0.00016575,2]
[350999354,1738277446796,-500.0,0.00016575,2]
[350999355,1738277446806,-500.0,0.00016575,2]
[350999356,1738277446815,-500.0,0.00016575,2]
[350999357,1738277446824,-492.13323394,0.00016575,2]
[350999383,1738277521918,164.854409,0.00013973,2]
[350999385,1738278341526,164.854409,0.00013973,2]
[350999412,1738278632835,-389.546654,0.00015421,2]
[350999413,1738278632845,-300.0,0.00015605,2]
[350999414,1738278632855,-20318.84102307,0.00015606,2]
[350999415,1738278633021,-2992.0335552,0.00015606,2]
[350999416,1738278633033,-1589.12542173,0.00015606,2]
[350999417,1738278633043,-500.0,0.00016338,2]
[350999418,1738278633053,-500.0,0.00016338,2]
[350999419,1738278633062,-385.121277,0.00016338,2]
[350999420,1738278633073,-195.65960989,0.00016338,2]
[350999421,1738278633082,-151.0,0.00016428,2]
[350999422,1738278633092,-335.54727907,0.00016437,2]
[350999423,1738278633103,-500.0,0.00016437,2]
[350999424,1738278633112,-500.0,0.00016437,2]
[350999425,1738278633122,-500.0,0.00016437,2]
[350999426,1738278633132,-83.53998742,0.00016437,2]
[350999429,1738278638640,-416.46001258,0.00016437,2]
[350999430,1738278638649,-500.0,0.00016437,2]
[350999431,1738278638659,-500.0,0.00016437,2]
[350999432,1738278638668,-500.0,0.00016437,2]
[350999433,1738278638677,-500.0,0.00016437,2]
[350999434,1738278638687,-500.0,0.00016437,2]
[350999435,1738278638696,-500.0,0.00016437,2]
[350999436,1738278638705,-500.0,0.00016437,2]
[350999437,1738278638715,-343.52285656,0.00016437,2]
[350999438,1738278638726,-156.47714344,0.00016437,2]
[350999439,1738278638735,-500.0,0.00016437,2]
[350999440,1738278638745,-500.0,0.00016437,2]
[350999441,1738278638754,-478.19169601,0.00016437,2]
[350999442,1738278638763,-452.13783554,0.00016437,2]
[350999443,1738278638774,-47.86216446,0.00016437,2]